[Event "Late-Titled-Tuesday-Blitz-September-19-2023"]
[Site "Chess.com"]
[Date "2023.09.19"]
[Round "7"]
[White "atigerman"]
[Black "Njal28"]
[Result "1/2-1/2"]
[WhiteElo "2707"]
[BlackElo "3095"]
[TimeControl "180+1"]
[EndTime "15:19:10 PDT"]
[Termination "Game drawn by repetition"]

1. e4 {[%clk 0:02:59.3]} 1... c5 {[%clk 0:02:52.2]} 2. Nf3 {[%clk 0:02:57.7]}
2... Nc6 {[%clk 0:02:52.6]} 3. Nc3 {[%clk 0:02:56]} 3... e6 {[%clk 0:02:49.5]}
4. Bb5 {[%clk 0:02:55.5]} 4... Nd4 {[%clk 0:02:46]} 5. O-O {[%clk 0:02:55.2]}
5... a6 {[%clk 0:02:42.8]} 6. Bd3 {[%clk 0:02:55.4]} 6... Nc6 {[%clk 0:02:43.3]}
7. e5 {[%clk 0:02:55.8]} 7... f5 {[%clk 0:02:38]} 8. Re1 {[%clk 0:02:45.7]} 8...
b5 {[%clk 0:02:32.7]} 9. Bf1 {[%clk 0:02:43]} 9... Bb7 {[%clk 0:02:29.6]} 10. d4
{[%clk 0:02:41.9]} 10... cxd4 {[%clk 0:02:30.5]} 11. Nxd4 {[%clk 0:02:41.8]}
11... Nxd4 {[%clk 0:02:29.5]} 12. Qxd4 {[%clk 0:02:42.7]} 12... Ne7 {[%clk
0:02:28.3]} 13. Bg5 {[%clk 0:02:42.3]} 13... Nc6 {[%clk 0:02:23.4]} 14. Qd2
{[%clk 0:02:33.8]} 14... Be7 {[%clk 0:02:18.9]} 15. Bxe7 {[%clk 0:02:33.7]}
15... Qxe7 {[%clk 0:02:19.8]} 16. Ne2 {[%clk 0:02:28.6]} 16... Nxe5 {[%clk
0:02:17.9]} 17. Nd4 {[%clk 0:02:18.7]} 17... Qf6 {[%clk 0:02:07.1]} 18. Qf4
{[%clk 0:02:02.9]} 18... Ng6 {[%clk 0:01:52.6]} 19. Qd6 {[%clk 0:02:01.2]} 19...
e5 {[%clk 0:01:16.1]} 20. Qc7 {[%clk 0:01:59.1]} 20... Bc6 {[%clk 0:00:56.7]}
21. Rad1 {[%clk 0:01:43]} 21... O-O {[%clk 0:00:51.6]} 22. Nxc6 {[%clk
0:01:41.2]} 22... Qxc6 {[%clk 0:00:46.5]} 23. Rxd7 {[%clk 0:01:41.6]} 23... Qxc7
{[%clk 0:00:46.1]} 24. Rxc7 {[%clk 0:01:42.5]} 24... Rfc8 {[%clk 0:00:45]} 25.
Rxc8+ {[%clk 0:01:26.4]} 25... Rxc8 {[%clk 0:00:45.9]} 26. c3 {[%clk 0:01:24]}
26... Rd8 {[%clk 0:00:45.2]} 27. c4 {[%clk 0:01:08.5]} 27... Rd2 {[%clk
0:00:33.7]} 28. cxb5 {[%clk 0:01:05.3]} 28... axb5 {[%clk 0:00:34.6]} 29. Bxb5
{[%clk 0:00:38.5]} 29... Rxb2 {[%clk 0:00:34.7]} 30. a4 {[%clk 0:00:36.8]} 30...
Kf8 {[%clk 0:00:34.9]} 31. Ra1 {[%clk 0:00:34.7]} 31... Ne7 {[%clk 0:00:29.1]}
32. Bd7 {[%clk 0:00:29.7]} 32... Rb7 {[%clk 0:00:28.3]} 33. Be6 {[%clk
0:00:29.6]} 33... g6 {[%clk 0:00:24.5]} 34. a5 {[%clk 0:00:29.3]} 34... Ra7
{[%clk 0:00:25.4]} 35. a6 {[%clk 0:00:29.5]} 35... Nc6 {[%clk 0:00:26.1]} 36.
Bc8 {[%clk 0:00:27.7]} 36... Ke7 {[%clk 0:00:24.1]} 37. Bb7 {[%clk 0:00:21.9]}
37... Nd8 {[%clk 0:00:21.9]} 38. Bc8 {[%clk 0:00:19]} 38... Nc6 {[%clk
0:00:18.7]} 39. Kf1 {[%clk 0:00:15.2]} 39... e4 {[%clk 0:00:18.4]} 40. h4 {[%clk
0:00:14.1]} 40... Kd6 {[%clk 0:00:18.9]} 41. g3 {[%clk 0:00:14.2]} 41... Rc7
{[%clk 0:00:06.3]} 42. Rd1+ {[%clk 0:00:11.7]} 42... Ke7 {[%clk 0:00:05.7]} 43.
Bb7 {[%clk 0:00:10.5]} 43... Na7 {[%clk 0:00:03.8]} 44. Rb1 {[%clk 0:00:10.2]}
44... Ke6 {[%clk 0:00:03]} 45. Ke2 {[%clk 0:00:08.8]} 45... Ke5 {[%clk
0:00:03.6]} 46. Ba8 {[%clk 0:00:06.8]} 46... Rc2+ {[%clk 0:00:02.6]} 47. Ke1
{[%clk 0:00:06.7]} 47... Ra2 {[%clk 0:00:02.9]} 48. Bb7 {[%clk 0:00:05.4]} 48...
h6 {[%clk 0:00:02.5]} 49. Rc1 {[%clk 0:00:04.7]} 49... g5 {[%clk 0:00:02.6]} 50.
hxg5 {[%clk 0:00:05.5]} 50... hxg5 {[%clk 0:00:03.5]} 51. Rc5+ {[%clk 0:00:03]}
51... Kf6 {[%clk 0:00:02.2]} 52. Rd5 {[%clk 0:00:02.9]} 52... Ra1+ {[%clk
0:00:02.5]} 53. Ke2 {[%clk 0:00:03.2]} 53... Ra2+ {[%clk 0:00:03.3]} 54. Kf1
{[%clk 0:00:03.9]} 54... f4 {[%clk 0:00:02.5]} 55. gxf4 {[%clk 0:00:03.9]} 55...
gxf4 {[%clk 0:00:03.4]} 56. Rd4 {[%clk 0:00:04]} 56... Ra1+ {[%clk 0:00:01.3]}
57. Kg2 {[%clk 0:00:03.3]} 57... f3+ {[%clk 0:00:02.2]} 58. Kg3 {[%clk
0:00:03.8]} 58... Rg1+ {[%clk 0:00:02.7]} 59. Kf4 {[%clk 0:00:04.4]} 59... Nb5
{[%clk 0:00:03]} 60. Rxe4 {[%clk 0:00:04.4]} 60... Nc3 {[%clk 0:00:03.5]} 61.
Rc4 {[%clk 0:00:04]} 61... Nb5 {[%clk 0:00:03]} 62. Kxf3 {[%clk 0:00:04.1]}
62... Ra1 {[%clk 0:00:03.6]} 63. Rf4+ {[%clk 0:00:04.3]} 63... Ke5 {[%clk
0:00:03.3]} 64. Rb4 {[%clk 0:00:04.4]} 64... Nd6 {[%clk 0:00:03.5]} 65. Kg2
{[%clk 0:00:04.7]} 65... Ra3 {[%clk 0:00:04]} 66. Rb6 {[%clk 0:00:04.6]} 66...
Nf5 {[%clk 0:00:02.1]} 67. Bc8 {[%clk 0:00:04]} 67... Nh4+ {[%clk 0:00:02.2]}
68. Kh2 {[%clk 0:00:04]} 68... Nf3+ {[%clk 0:00:02.9]} 69. Kg2 {[%clk
0:00:04.2]} 69... Nh4+ {[%clk 0:00:03.1]} 70. Kf1 {[%clk 0:00:04.8]} 70... Nf3
{[%clk 0:00:02.7]} 71. Rb5+ {[%clk 0:00:04.2]} 71... Kd6 {[%clk 0:00:02.8]} 72.
Bb7 {[%clk 0:00:04.6]} 72... Nd2+ {[%clk 0:00:03.2]} 73. Ke2 {[%clk 0:00:05.1]}
73... Nc4 {[%clk 0:00:03.1]} 74. Rb4 {[%clk 0:00:05.6]} 74... Kc5 {[%clk
0:00:03.1]} 75. Rb1 {[%clk 0:00:05.5]} 75... Ra2+ {[%clk 0:00:03.7]} 76. Ke1
{[%clk 0:00:05.3]} 76... Ne5 {[%clk 0:00:03.8]} 77. Rc1+ {[%clk 0:00:05.5]}
77... Kd4 {[%clk 0:00:04.1]} 78. Rd1+ {[%clk 0:00:06]} 78... Nd3+ {[%clk
0:00:04.4]} 79. Kf1 {[%clk 0:00:02.2]} 79... Rxf2+ {[%clk 0:00:04.5]} 80. Kg1
{[%clk 0:00:03.1]} 80... Ra2 {[%clk 0:00:05.3]} 81. Rf1 {[%clk 0:00:02.3]} 81...
Ke5 {[%clk 0:00:04.2]} 82. Rd1 {[%clk 0:00:02.3]} 82... Nf4 {[%clk 0:00:04.5]}
83. Re1+ {[%clk 0:00:02.5]} 83... Kf5 {[%clk 0:00:04.8]} 84. Rf1 {[%clk
0:00:03]} 84... Kg5 {[%clk 0:00:05]} 85. Re1 {[%clk 0:00:03.1]} 85... Kh4 {[%clk
0:00:03.7]} 86. Re3 {[%clk 0:00:02.8]} 86... Ne2+ {[%clk 0:00:02.7]} 87. Kf2
{[%clk 0:00:02.7]} 87... Nd4+ {[%clk 0:00:02.4]} 88. Kf1 {[%clk 0:00:03.3]}
88... Nf5 {[%clk 0:00:02.7]} 89. Re4+ {[%clk 0:00:02.8]} 89... Kg5 {[%clk
0:00:03.4]} 90. Ke1 {[%clk 0:00:03.3]} 90... Kf6 {[%clk 0:00:03.5]} 91. Kd1
{[%clk 0:00:03.6]} 91... Nd6 {[%clk 0:00:03.5]} 92. Re3 {[%clk 0:00:03.3]} 92...
Nb5 {[%clk 0:00:03.2]} 93. Kc1 {[%clk 0:00:03.1]} 93... Ra5 {[%clk 0:00:03]} 94.
Kb2 {[%clk 0:00:03.2]} 94... Nd6 {[%clk 0:00:03.5]} 95. Rf3+ {[%clk 0:00:03.2]}
95... Ke5 {[%clk 0:00:03.6]} 96. Re3+ {[%clk 0:00:03.9]} 96... Kd4 {[%clk
0:00:03.4]} 97. Rh3 {[%clk 0:00:04.3]} 97... Nc4+ {[%clk 0:00:03.9]} 98. Kb1
{[%clk 0:00:04.8]} 98... Ne3 {[%clk 0:00:02]} 99. Rh4+ {[%clk 0:00:04.1]} 99...
Kd3 {[%clk 0:00:02.2]} 100. Rb4 {[%clk 0:00:04.1]} 100... Nc4 {[%clk 0:00:01.9]}
101. Rb3+ {[%clk 0:00:04]} 101... Kd4 {[%clk 0:00:02.6]} 102. Rb4 {[%clk
0:00:02.9]} 102... Kc5 {[%clk 0:00:02.7]} 103. Rb3 {[%clk 0:00:03]} 103... Nd2+
{[%clk 0:00:03.3]} 104. Kb2 {[%clk 0:00:03.6]} 104... Nxb3 {[%clk 0:00:04.2]}
105. Kxb3 {[%clk 0:00:04.5]} 105... Kb6 {[%clk 0:00:05.1]} 106. Kb4 {[%clk
0:00:04.8]} 106... Rg5 {[%clk 0:00:05.9]} 107. Kc4 {[%clk 0:00:05.3]} 107...
Rg4+ {[%clk 0:00:06.5]} 108. Kd5 {[%clk 0:00:05.7]} 108... Ra4 {[%clk
0:00:07.1]} 109. Ke5 {[%clk 0:00:05.9]} 109... Ra3 {[%clk 0:00:07.3]} 110. Kd4
{[%clk 0:00:06.2]} 110... Kb5 {[%clk 0:00:06.8]} 111. Kd5 {[%clk 0:00:06.5]}
111... Kb6 {[%clk 0:00:05.8]} 112. Kd6 {[%clk 0:00:06.9]} 112... Ra5 {[%clk
0:00:06]} 113. Kd7 {[%clk 0:00:06.6]} 113... Rc5 {[%clk 0:00:06.3]} 114. Kd6
{[%clk 0:00:06.6]} 114... Rc1 {[%clk 0:00:06.5]} 115. Kd5 {[%clk 0:00:06.9]}
115... Rd1+ {[%clk 0:00:06.6]} 116. Ke5 {[%clk 0:00:07.4]} 116... Kc7 {[%clk
0:00:06.1]} 117. Ke4 {[%clk 0:00:07.5]} 117... Rd8 {[%clk 0:00:04.9]} 118. Ke5
{[%clk 0:00:07.8]} 118... Rd2 {[%clk 0:00:04.9]} 119. Ke4 {[%clk 0:00:08.1]}
119... Ra2 {[%clk 0:00:05.4]} 120. Kd4 {[%clk 0:00:08.5]} 120... Kd6 {[%clk
0:00:04.4]} 121. Kc4 {[%clk 0:00:08.8]} 121... Ra4+ {[%clk 0:00:04]} 122. Kb5
{[%clk 0:00:09]} 122... Ra1 {[%clk 0:00:04.6]} 123. Kb4 {[%clk 0:00:09.3]}
123... Rb1+ {[%clk 0:00:03.3]} 124. Kc4 {[%clk 0:00:09.8]} 124... Rc1+ {[%clk
0:00:02.7]} 125. Kd3 {[%clk 0:00:10.4]} 125... Ra1 {[%clk 0:00:03.6]} 126. Kc2
{[%clk 0:00:10.8]} 126... Kc5 {[%clk 0:00:04.1]} 127. Kb2 {[%clk 0:00:11.3]}
127... Ra4 {[%clk 0:00:03.3]} 128. Kb3 {[%clk 0:00:11.9]} 128... Ra5 {[%clk
0:00:04]} 129. Kc3 {[%clk 0:00:12.1]} 129... Ra3+ {[%clk 0:00:04.7]} 130. Kd2
{[%clk 0:00:12.3]} 130... Kd4 {[%clk 0:00:05.1]} 131. Ke2 {[%clk 0:00:12.4]}
131... Ra5 {[%clk 0:00:02.2]} 132. Kf3 {[%clk 0:00:12.7]} 132... Ke5 {[%clk
0:00:02.8]} 133. Ke3 {[%clk 0:00:13]} 133... Ra3+ {[%clk 0:00:03.4]} 134. Ke2
{[%clk 0:00:13.6]} 134... Kd4 {[%clk 0:00:04.3]} 135. Kf2 {[%clk 0:00:14.2]}
135... Kc5 {[%clk 0:00:04.6]} 136. Ke2 {[%clk 0:00:14.4]} 136... Kb6 {[%clk
0:00:05.1]} 137. Kd2 {[%clk 0:00:15]} 137... Ka7 {[%clk 0:00:05.6]} 138. Kc2
{[%clk 0:00:15.5]} 138... Rg3 {[%clk 0:00:06.3]} 139. Kd2 {[%clk 0:00:15.9]}
139... Kb6 {[%clk 0:00:06.5]} 140. Ke2 {[%clk 0:00:16.4]} 140... Ra3 {[%clk
0:00:07]} 141. Kd2 {[%clk 0:00:16.8]} 141... Kc5 {[%clk 0:00:07.7]} 142. Kc2
{[%clk 0:00:17.2]} 142... Kc4 {[%clk 0:00:08.4]} 143. Kb2 {[%clk 0:00:17.7]}
143... Rb3+ {[%clk 0:00:09]} 144. Kc2 {[%clk 0:00:18.2]} 144... Ra3 {[%clk
0:00:08.7]} 145. Kd2 {[%clk 0:00:18.5]} 145... Kd4 {[%clk 0:00:08.2]} 146. Ke2
{[%clk 0:00:18.9]} 146... Re3+ {[%clk 0:00:07.7]} 147. Kf2 {[%clk 0:00:19.3]}
147... Ra3 {[%clk 0:00:06.9]} 148. Ke2 {[%clk 0:00:19.6]} 1/2-1/2

[Event "Late-Titled-Tuesday-Blitz-September-19-2023"]
[Site "Chess.com"]
[Date "2023.09.19"]
[Round "7"]
[White "Angry_Twin"]
[Black "Mops_2004"]
[Result "1/2-1/2"]
[WhiteElo "2950"]
[BlackElo "2809"]
[TimeControl "180+1"]
[EndTime "15:19:53 PDT"]
[Termination "Game drawn by 50-move rule"]

1. e4 {[%clk 0:02:52.9]} 1... g6 {[%clk 0:03:00.4]} 2. d4 {[%clk 0:02:52.8]}
2... Bg7 {[%clk 0:03:01.1]} 3. Nc3 {[%clk 0:02:53.6]} 3... d6 {[%clk 0:03:01.6]}
4. f4 {[%clk 0:02:54.1]} 4... Nf6 {[%clk 0:03:01.8]} 5. Nf3 {[%clk 0:02:54.9]}
5... c5 {[%clk 0:03:02.2]} 6. Bb5+ {[%clk 0:02:54.8]} 6... Bd7 {[%clk 0:03:02]}
7. e5 {[%clk 0:02:55.3]} 7... Ng4 {[%clk 0:03:02.2]} 8. e6 {[%clk 0:02:55.9]}
8... fxe6 {[%clk 0:03:02.9]} 9. Ng5 {[%clk 0:02:55.3]} 9... Bxb5 {[%clk
0:03:03.2]} 10. Nxe6 {[%clk 0:02:53.9]} 10... Bxd4 {[%clk 0:03:03.1]} 11. Nxb5
{[%clk 0:02:54.1]} 11... Qa5+ {[%clk 0:02:57.9]} 12. c3 {[%clk 0:02:47]} 12...
Bf2+ {[%clk 0:02:54.2]} 13. Kd2 {[%clk 0:02:47.1]} 13... Be3+ {[%clk 0:02:43.9]}
14. Ke1 {[%clk 0:02:40.5]} 14... Bf2+ {[%clk 0:02:18.7]} 15. Kd2 {[%clk
0:02:40.4]} 15... Be3+ {[%clk 0:02:18.9]} 16. Kc2 {[%clk 0:02:40.7]} 16... Qa4+
{[%clk 0:02:19.2]} 17. Kb1 {[%clk 0:02:39.5]} 17... Qxd1 {[%clk 0:01:53.6]} 18.
Rxd1 {[%clk 0:02:40.4]} 18... Kd7 {[%clk 0:01:50.5]} 19. Nec7 {[%clk 0:02:27.5]}
19... a6 {[%clk 0:01:50.5]} 20. Nxa8 {[%clk 0:02:27.2]} 20... axb5 {[%clk
0:01:51.1]} 21. Nb6+ {[%clk 0:02:27.8]} 21... Kc6 {[%clk 0:01:32.5]} 22. Nd5
{[%clk 0:02:27.5]} 22... Bxc1 {[%clk 0:01:32.5]} 23. Kxc1 {[%clk 0:02:27.9]}
23... e6 {[%clk 0:01:32.6]} 24. h3 {[%clk 0:02:18.7]} 24... Nf2 {[%clk 0:01:20]}
25. Rf1 {[%clk 0:02:16.8]} 25... Nd3+ {[%clk 0:00:56.2]} 26. Kc2 {[%clk
0:02:16.8]} 26... Nxb2 {[%clk 0:00:57]} 27. Ne7+ {[%clk 0:01:56.4]} 27... Kd7
{[%clk 0:00:56.7]} 28. Nxg6 {[%clk 0:01:56.9]} 28... hxg6 {[%clk 0:00:55.9]} 29.
Kxb2 {[%clk 0:01:57.6]} 29... Nc6 {[%clk 0:00:49.7]} 30. a3 {[%clk 0:01:54.2]}
30... Na5 {[%clk 0:00:47.2]} 31. Rf2 {[%clk 0:01:39.9]} 31... Ra8 {[%clk
0:00:45.4]} 32. a4 {[%clk 0:01:37.3]} 32... Nc4+ {[%clk 0:00:35]} 33. Kb3 {[%clk
0:01:37.5]} 33... Nb6 {[%clk 0:00:27.6]} 34. a5 {[%clk 0:01:35]} 34... Nc4
{[%clk 0:00:27.5]} 35. Rfa2 {[%clk 0:01:35.6]} 35... Ra6 {[%clk 0:00:24.1]} 36.
g4 {[%clk 0:01:33.8]} 36... Ne3 {[%clk 0:00:21.3]} 37. Re1 {[%clk 0:01:20.7]}
37... Nd5 {[%clk 0:00:19.5]} 38. Rf1 {[%clk 0:01:07.2]} 38... Ne3 {[%clk
0:00:15.5]} 39. Rh1 {[%clk 0:01:01.7]} 39... Ke7 {[%clk 0:00:10]} 40. h4 {[%clk
0:00:57.4]} 40... Nxg4 {[%clk 0:00:06.5]} 41. Rg2 {[%clk 0:00:57.3]} 41... Ne3
{[%clk 0:00:05.3]} 42. Rxg6 {[%clk 0:00:57.7]} 42... Rxa5 {[%clk 0:00:05.3]} 43.
Re1 {[%clk 0:00:57.1]} 43... Nc4 {[%clk 0:00:04.7]} 44. Rexe6+ {[%clk
0:00:50.7]} 44... Kd7 {[%clk 0:00:05.4]} 45. Ref6 {[%clk 0:00:20.8]} 45... Ra1
{[%clk 0:00:05.4]} 46. Kc2 {[%clk 0:00:20.7]} 46... Rh1 {[%clk 0:00:04.1]} 47.
Rg7+ {[%clk 0:00:16.9]} 47... Kc6 {[%clk 0:00:02.7]} 48. Rff7 {[%clk 0:00:17.3]}
48... Rh2+ {[%clk 0:00:02.7]} 49. Kc1 {[%clk 0:00:17.8]} 49... Kd5 {[%clk
0:00:02.8]} 50. Rxb7 {[%clk 0:00:17.2]} 50... Rh1+ {[%clk 0:00:02.9]} 51. Kc2
{[%clk 0:00:17.7]} 51... Rh2+ {[%clk 0:00:03.2]} 52. Kd1 {[%clk 0:00:18.2]}
52... Ke4 {[%clk 0:00:02.6]} 53. Rxb5 {[%clk 0:00:15.9]} 53... Kf3 {[%clk
0:00:02.1]} 54. Kc1 {[%clk 0:00:14.8]} 54... Ke3 {[%clk 0:00:01.5]} 55. Rg3+
{[%clk 0:00:12.9]} 55... Kxf4 {[%clk 0:00:01.6]} 56. Rd3 {[%clk 0:00:13.2]}
56... Ke4 {[%clk 0:00:02]} 57. Rd1 {[%clk 0:00:11.2]} 57... Rxh4 {[%clk
0:00:02.3]} 58. Rb8 {[%clk 0:00:09.3]} 58... Rh3 {[%clk 0:00:02.9]} 59. Re8+
{[%clk 0:00:09.4]} 59... Ne5 {[%clk 0:00:03.1]} 60. Rxd6 {[%clk 0:00:09.3]}
60... Rxc3+ {[%clk 0:00:03.7]} 61. Kd2 {[%clk 0:00:09.6]} 61... Rf3 {[%clk
0:00:02.7]} 62. Rde6 {[%clk 0:00:06.3]} 62... Rf2+ {[%clk 0:00:02.6]} 63. Kc3
{[%clk 0:00:05.9]} 63... Rf3+ {[%clk 0:00:03.3]} 64. Kc2 {[%clk 0:00:05.8]}
64... Rf5 {[%clk 0:00:03.4]} 65. R6e7 {[%clk 0:00:04.7]} 65... Kd5 {[%clk
0:00:03.4]} 66. Rd8+ {[%clk 0:00:05.1]} 66... Ke4 {[%clk 0:00:03.4]} 67. Kc3
{[%clk 0:00:05]} 67... c4 {[%clk 0:00:03.6]} 68. Rde8 {[%clk 0:00:04.8]} 68...
Rf3+ {[%clk 0:00:03.1]} 69. Kc2 {[%clk 0:00:05.3]} 69... Rf2+ {[%clk 0:00:02.6]}
70. Kc3 {[%clk 0:00:04.5]} 70... Rf5 {[%clk 0:00:03.5]} 71. Kb4 {[%clk 0:00:04]}
71... Kd4 {[%clk 0:00:03.7]} 72. Rd8+ {[%clk 0:00:04.3]} 72... Ke4 {[%clk
0:00:04]} 73. Kc3 {[%clk 0:00:03.8]} 73... Kf4 {[%clk 0:00:04.2]} 74. Rde8
{[%clk 0:00:02.9]} 74... Rg5 {[%clk 0:00:04.3]} 75. Rf8+ {[%clk 0:00:02.6]}
75... Ke4 {[%clk 0:00:04.4]} 76. Rfe8 {[%clk 0:00:03.1]} 76... Rg3+ {[%clk
0:00:04.5]} 77. Kc2 {[%clk 0:00:03.5]} 77... Rg5 {[%clk 0:00:05.4]} 78. Ra8
{[%clk 0:00:03.1]} 78... Kd4 {[%clk 0:00:05.6]} 79. Rd8+ {[%clk 0:00:02.8]}
79... Ke4 {[%clk 0:00:06.1]} 80. Rc7 {[%clk 0:00:03.2]} 80... Rg2+ {[%clk
0:00:06.1]} 81. Kc3 {[%clk 0:00:03.7]} 81... Rg3+ {[%clk 0:00:06.8]} 82. Kd2
{[%clk 0:00:03.9]} 82... Rg2+ {[%clk 0:00:06.3]} 83. Ke1 {[%clk 0:00:04.1]}
83... Nd3+ {[%clk 0:00:05.6]} 84. Kd1 {[%clk 0:00:04.6]} 84... Ke3 {[%clk
0:00:04.9]} 85. Re7+ {[%clk 0:00:04]} 85... Kf3 {[%clk 0:00:04.3]} 86. Rf8+
{[%clk 0:00:04.6]} 86... Nf4 {[%clk 0:00:04]} 87. Ref7 {[%clk 0:00:03.3]} 87...
Rg4 {[%clk 0:00:03.9]} 88. Kc2 {[%clk 0:00:03.7]} 88... Ke3 {[%clk 0:00:03.1]}
89. Re8+ {[%clk 0:00:03.9]} 89... Kf3 {[%clk 0:00:03]} 90. Re5 {[%clk
0:00:03.5]} 90... Rg2+ {[%clk 0:00:02]} 91. Kc3 {[%clk 0:00:03.8]} 91... Rg1
{[%clk 0:00:02.6]} 92. Kxc4 {[%clk 0:00:04]} 92... Rc1+ {[%clk 0:00:03.1]} 93.
Kb3 {[%clk 0:00:03.9]} 93... Rb1+ {[%clk 0:00:03.2]} 94. Kc2 {[%clk 0:00:04.1]}
94... Rf1 {[%clk 0:00:04]} 95. Re8 {[%clk 0:00:04]} 95... Kg3 {[%clk 0:00:04]}
96. Rg7+ {[%clk 0:00:03.8]} 96... Kf3 {[%clk 0:00:04.6]} 97. Rf8 {[%clk
0:00:04]} 97... Rf2+ {[%clk 0:00:04.9]} 98. Kd1 {[%clk 0:00:03.8]} 98... Rf1+
{[%clk 0:00:04.8]} 99. Kd2 {[%clk 0:00:04.4]} 99... Rf2+ {[%clk 0:00:04.8]} 100.
Ke1 {[%clk 0:00:04.7]} 100... Re2+ {[%clk 0:00:04.5]} 101. Kf1 {[%clk
0:00:04.8]} 101... Rf2+ {[%clk 0:00:05]} 102. Kg1 {[%clk 0:00:05.4]} 102... Re2
{[%clk 0:00:04.8]} 103. Kh1 {[%clk 0:00:02.4]} 103... Re3 {[%clk 0:00:03.8]}
104. Rg1 {[%clk 0:00:02.3]} 104... Ke4 {[%clk 0:00:02.9]} 105. Rg4 {[%clk
0:00:02.3]} 105... Rf3 {[%clk 0:00:02.6]} 106. Kh2 {[%clk 0:00:02.3]} 106... Ke5
{[%clk 0:00:02.6]} 107. Rg5+ {[%clk 0:00:02.4]} 107... Ke4 {[%clk 0:00:02.7]}
108. Rg4 {[%clk 0:00:03.3]} 108... Ke5 {[%clk 0:00:02.8]} 109. Rg3 {[%clk
0:00:03.9]} 109... Rxg3 {[%clk 0:00:02.4]} 110. Kxg3 {[%clk 0:00:04.8]} 110...
Nd5 {[%clk 0:00:02.8]} 111. Re8+ {[%clk 0:00:04.9]} 111... Kd4 {[%clk
0:00:03.7]} 112. Kf3 {[%clk 0:00:05.3]} 112... Nc3 {[%clk 0:00:03.9]} 113. Rd8+
{[%clk 0:00:05.5]} 113... Nd5 {[%clk 0:00:04.6]} 114. Rd7 {[%clk 0:00:06.1]}
114... Ke5 {[%clk 0:00:04.5]} 115. Rh7 {[%clk 0:00:05.4]} 115... Kd4 {[%clk
0:00:05.1]} 116. Rh5 {[%clk 0:00:05.3]} 116... Nc3 {[%clk 0:00:04.7]} 117. Rh4+
{[%clk 0:00:05.6]} 117... Ke5 {[%clk 0:00:04.7]} 118. Ke3 {[%clk 0:00:05.1]}
118... Nd5+ {[%clk 0:00:05]} 119. Kf3 {[%clk 0:00:05.8]} 119... Nc3 {[%clk
0:00:04.7]} 120. Rc4 {[%clk 0:00:06.4]} 120... Nd5 {[%clk 0:00:04.3]} 121. Ra4
{[%clk 0:00:07.1]} 121... Nc3 {[%clk 0:00:04.2]} 122. Ra5+ {[%clk 0:00:07.3]}
122... Nd5 {[%clk 0:00:05.1]} 123. Ke2 {[%clk 0:00:07.6]} 123... Kd4 {[%clk
0:00:06]} 124. Kd2 {[%clk 0:00:08.1]} 124... Nc3 {[%clk 0:00:05.5]} 125. Rh5
{[%clk 0:00:07.5]} 125... Ne4+ {[%clk 0:00:05.9]} 126. Kc2 {[%clk 0:00:08.1]}
126... Ke3 {[%clk 0:00:05.8]} 127. Rh3+ {[%clk 0:00:08.1]} 127... Kd4 {[%clk
0:00:06.7]} 128. Rd3+ {[%clk 0:00:07.8]} 128... Kc4 {[%clk 0:00:06.6]} 129. Rd8
{[%clk 0:00:08.4]} 129... Nc5 {[%clk 0:00:06.2]} 130. Kd2 {[%clk 0:00:09]}
130... Ne6 {[%clk 0:00:06.1]} 131. Rd6 {[%clk 0:00:08.7]} 131... Nd4 {[%clk
0:00:07]} 132. Rd8 {[%clk 0:00:08]} 132... Nb3+ {[%clk 0:00:07.1]} 133. Ke3
{[%clk 0:00:08.4]} 133... Nc5 {[%clk 0:00:06.1]} 134. Rd4+ {[%clk 0:00:08.8]}
134... Kc3 {[%clk 0:00:06.2]} 135. Rh4 {[%clk 0:00:08.9]} 135... Nb3 {[%clk
0:00:06.3]} 136. Rh8 {[%clk 0:00:09]} 136... Kc4 {[%clk 0:00:07.2]} 137. Rc8+
{[%clk 0:00:08.8]} 137... Nc5 {[%clk 0:00:08.1]} 138. Rd8 {[%clk 0:00:08.1]}
138... Nb3 {[%clk 0:00:07.7]} 139. Rd1 {[%clk 0:00:08.7]} 139... Nc5 {[%clk
0:00:08.1]} 140. Rc1+ {[%clk 0:00:09.2]} 140... Kd5 {[%clk 0:00:08.6]} 141. Rh1
{[%clk 0:00:08.8]} 141... Kc4 {[%clk 0:00:08.8]} 142. Rh4+ {[%clk 0:00:08.9]}
142... Kd5 {[%clk 0:00:09.1]} 143. Rh5+ {[%clk 0:00:08.8]} 143... Kc4 {[%clk
0:00:09]} 144. Rg5 {[%clk 0:00:09.4]} 144... Nb3 {[%clk 0:00:08.9]} 145. Rg8
{[%clk 0:00:08.7]} 145... Nc5 {[%clk 0:00:09.3]} 146. Kd2 {[%clk 0:00:08.9]}
146... Kd5 {[%clk 0:00:10.2]} 147. Kc3 {[%clk 0:00:09.1]} 147... Ne4+ {[%clk
0:00:10.2]} 148. Kd3 {[%clk 0:00:09.7]} 148... Nc5+ {[%clk 0:00:10.2]} 149. Ke3
{[%clk 0:00:09.7]} 149... Ne6 {[%clk 0:00:10.5]} 150. Rh8 {[%clk 0:00:09.6]}
150... Nc5 {[%clk 0:00:11.1]} 151. Rh5+ {[%clk 0:00:09.8]} 151... Kc4 {[%clk
0:00:11.7]} 152. Re5 {[%clk 0:00:08.8]} 152... Nb3 {[%clk 0:00:11.8]} 153. Re4+
{[%clk 0:00:06.8]} 153... Kc5 {[%clk 0:00:11]} 154. Rh4 {[%clk 0:00:07.4]}
154... Na5 {[%clk 0:00:10.8]} 155. Rh5+ {[%clk 0:00:07.5]} 155... Kb4 {[%clk
0:00:10.6]} 156. Kd4 {[%clk 0:00:07.5]} 156... Nb3+ {[%clk 0:00:10.9]} 157. Kd5
{[%clk 0:00:07.3]} 157... Kc3 {[%clk 0:00:09.8]} 158. Rh3+ {[%clk 0:00:07.2]}
158... Kc2 {[%clk 0:00:10]} 159. Kc4 {[%clk 0:00:06]} 159... Nd2+ {[%clk
0:00:10.6]} 160. Kd4 {[%clk 0:00:06]} 1/2-1/2

[Event "Late-Titled-Tuesday-Blitz-September-19-2023"]
[Site "Chess.com"]
[Date "2023.09.19"]
[Round "8"]
[White "IvanRadivojevic"]
[Black "maciek_92"]
[Result "0-1"]
[WhiteElo "2562"]
[BlackElo "2749"]
[TimeControl "180+1"]
[EndTime "15:23:31 PDT"]
[Termination "maciek_92 won by checkmate"]

1. e4 {[%clk 0:02:51.9]} 1... c5 {[%clk 0:03:00]} 2. Nc3 {[%clk 0:02:51.7]} 2...
Nc6 {[%clk 0:03:00]} 3. Bb5 {[%clk 0:02:51.6]} 3... Nd4 {[%clk 0:03:00.7]} 4.
Nf3 {[%clk 0:02:48.7]} 4... e6 {[%clk 0:03:01.4]} 5. O-O {[%clk 0:02:47.5]} 5...
a6 {[%clk 0:03:01.8]} 6. Bd3 {[%clk 0:02:46.2]} 6... Nc6 {[%clk 0:03:02.5]} 7.
Re1 {[%clk 0:02:46.5]} 7... g5 {[%clk 0:03:02.8]} 8. Kh1 {[%clk 0:02:29]} 8...
g4 {[%clk 0:02:54.1]} 9. Ng1 {[%clk 0:02:28.7]} 9... h5 {[%clk 0:02:54.7]} 10.
Bf1 {[%clk 0:02:24.4]} 10... Bg7 {[%clk 0:02:44.7]} 11. Nce2 {[%clk 0:02:22.4]}
11... Nge7 {[%clk 0:02:37.1]} 12. c3 {[%clk 0:02:21.8]} 12... d5 {[%clk
0:02:37.3]} 13. exd5 {[%clk 0:02:13.6]} 13... Nxd5 {[%clk 0:02:31.3]} 14. d4
{[%clk 0:02:13.7]} 14... cxd4 {[%clk 0:02:31.8]} 15. Nxd4 {[%clk 0:02:14.2]}
15... Nxd4 {[%clk 0:02:32]} 16. cxd4 {[%clk 0:02:14.8]} 16... Bd7 {[%clk
0:02:23.3]} 17. Ne2 {[%clk 0:02:01.5]} 17... Qf6 {[%clk 0:02:10.7]} 18. Kg1
{[%clk 0:02:00.7]} 18... h4 {[%clk 0:02:06.2]} 19. Nc3 {[%clk 0:01:54.6]} 19...
g3 {[%clk 0:02:04.4]} 20. fxg3 {[%clk 0:01:46.7]} 20... hxg3 {[%clk 0:02:00.6]}
21. Nxd5 {[%clk 0:01:33.9]} 21... Qf2+ {[%clk 0:01:59.2]} 22. Kh1 {[%clk
0:01:32.9]} 22... Rxh2# {[%clk 0:02:00.1]} 0-1